bitfinex-derivatives/quotes_ETHF0:USTF0_20220106
["timestamp","ask_amount","ask_price","bid_price","bid_amount"]
[1641483196154,1.87283955,3388.3,3387.8,2.00479]
[1641483196654,1.87283955,3388.3,3387.6,0.46926237]
[1641483196856,1.5,3388.1,3387.6,0.46926237]
[1641483197055,13.097182,3388.3,3387.3,2.00479]
[1641483197056,1.47590148,3387.8,3387.3,2.00479]
[1641483197256,1.47590148,3387.8,3387.3,2.389262]
[1641483197555,1.87308348,3387.8,3387.3,2.786444]
[1641483198155,2.00479,3387.7,3387.3,0.384472]
[1641483198555,0.397182,3387.6,3387.3,0.384472]
[1641483198757,0.397182,3387.6,3387.4,0.459982]
[1641483199057,0.5504,3387.6,3387.3,0.384472]
[1641483199357,0.397182,3387.6,3387.3,0.384472]
[1641483199557,0.397182,3387.6,3387.4,0.459982]
[1641483199757,2.00479,3387.7,3387.4,0.459982]
[1641483200359,2.00479,3387.7,3387.4,0.857164]
[1641483200563,0.153218,3387.6,3387.4,0.857164]
[1641483200756,2.00479,3387.7,3387.4,0.857164]
[1641483201157,2.00479,3387.7,3387.4,0.397182]
[1641483201557,2.00479,3387.7,3387.5,0.459982]
[1641483201757,1.47590148,3387.8,3387.6,0.397182]
[1641483201959,0.99260347,3388.3,3387.7,1.5]
[1641483202258,0.99260347,3388.3,3387.9,3.50479]
[1641483202458,0.99260347,3388.3,3388.0,0.384472]
[1641483202657,0.99260347,3388.3,3388.1,0.459982]
[1641483202957,1.24097563,3388.5,3388.1,0.459982]
[1641483202958,0.99260347,3388.5,3388.2,0.397182]
[1641483203160,2.158008,3388.4,3388.2,0.397182]
[1641483203957,2.00479,3388.4,3388.3,0.459982]
[1641483204557,2.158008,3388.4,3388.2,0.397182]
[1641483205059,2.00479,3388.4,3388.3,0.459982]
[1641483205657,2.00479,3388.4,3388.2,0.397182]
[1641483205859,2.00479,3388.4,3388.3,0.459982]
[1641483206057,2.00479,3388.4,3388.2,0.397182]
[1641483206558,0.153218,3388.3,3388.2,0.397182]
[1641483207160,0.99260347,3388.7,3388.2,0.857164]
[1641483207360,0.62569038,3389.0,3388.3,1.5]
[1641483208161,0.62569038,3389.0,3388.8,2.00479]
[1641483208367,0.62569038,3389.0,3388.9,0.844454]
[1641483209163,2.89665908,3389.6,3388.9,0.844454]
[1641483209864,0.89186908,3389.6,3388.9,0.844454]
[1641483210066,0.2661787,3389.6,3389.0,1.5]
[1641483210269,0.2661787,3389.5,3389.3,2.00479]
[1641483210469,0.2661787,3389.5,3389.4,0.459982]
[1641483211667,0.397182,3389.8,3389.4,0.459982]
[1641483211867,0.397182,3389.8,3389.3,2.00479]
[1641483212669,0.2661787,3389.7,3389.4,1.2118752]
[1641483212870,0.2661787,3389.7,3389.5,0.459982]
[1641483213067,0.2661787,3389.7,3389.4,1.2118752]
[1641483213668,0.2661787,3389.7,3389.5,0.459982]
[1641483213868,0.397182,3389.9,3389.6,1.2118752]
[1641483213869,0.2661787,3389.8,3389.6,1.2118752]
[1641483214569,0.2661787,3389.8,3389.6,1.5963472]
[1641483215169,0.153218,3389.7,3389.6,1.5963472]
[1641483215369,0.2661787,3389.8,3389.6,0.85363922]
[1641483215569,0.397182,3389.7,3389.6,0.46916722]
[1641483215770,1.87225402,3389.7,3389.6,0.46916722]
[1641483215973,2.02547202,3389.7,3389.6,0.46916722]
[1641483216169,14.72547202,3389.7,3389.6,0.46916722]
[1641483216369,14.72547202,3389.7,3389.3,2.00479]
[1641483216572,1.47517429,3389.5,3388.8,0.62581886]
[1641483216772,0.397182,3389.4,3388.8,0.62581886]
[1641483216973,0.397182,3389.4,3388.8,1.01029086]
[1641483217773,1.51696815,3389.3,3388.8,1.01029086]
[1641483217973,0.397182,3389.2,3388.8,0.384472]
[1641483218374,2.00479,3389.1,3388.8,0.384472]
[1641483218577,0.5504,3389.0,3388.8,0.384472]
[1641483219075,0.5504,3389.0,3388.9,0.46923425]
[1641483219275,0.397182,3389.0,3388.9,0.46923425]
[1641483219476,0.5504,3389.0,3388.9,0.46923425]
[1641483219876,0.397182,3389.0,3388.9,0.46923425]
[1641483220277,0.8165787,3389.0,3388.9,0.46923425]
[1641483220477,0.6633607,3389.0,3388.9,0.46923425]
[1641483221478,0.8165787,3389.0,3388.9,0.46923425]
[1641483221679,0.6633607,3389.0,3388.9,0.92921625]
[1641483221878,0.2661787,3389.0,3388.9,0.46923425]
[1641483222279,0.2661787,3389.0,3388.9,2.47402425]
[1641483222479,0.2661787,3389.0,3388.9,2.93400625]
[1641483223079,1.00059533,3389.1,3388.9,2.93400625]
[1641483223480,1.00059533,3389.4,3388.9,2.93400625]
[1641483224284,1.00059533,3389.4,3389.3,2.00479]
[1641483224482,1.00059533,3389.4,3389.3,2.464772]
[1641483224983,1.00059533,3389.7,3389.3,2.464772]
[1641483226785,3.47971843,3390.0,3389.3,2.464772]
[1641483227184,2.00479,3390.0,3389.3,2.464772]
[1641483228186,0.397182,3389.9,3389.3,2.00479]
[1641483229485,0.397182,3389.9,3388.9,2.00479]
[1641483229888,13.097182,3389.9,3388.9,2.00479]
[1641483230091,1.47506767,3389.7,3388.9,2.00479]
[1641483230287,2.00479,3389.5,3388.9,2.00479]
[1641483230488,12.7,3389.9,3388.9,2.00479]
[1641483230689,2.00479,3390.0,3388.9,2.00479]
[1641483230989,1.47497629,3389.9,3388.9,2.00479]
[1641483232489,1.47497629,3389.9,3388.9,2.7447683]
[1641483234790,1.47497629,3389.9,3388.9,2.00479]
[1641483235690,1.47497629,3389.9,3388.8,0.384472]
[1641483236892,2.00479,3390.0,3388.8,0.384472]
[1641483237494,2.00479,3390.3,3389.6,1.5]
[1641483237693,1.00059533,3390.6,3390.2,1.5]
[1641483237893,1.00059533,3390.6,3389.7,0.384472]
[1641483238294,1.00059533,3390.6,3390.2,2.00479]
[1641483238694,2.00479,3391.0,3390.2,2.00479]
[1641483239094,13.097182,3390.9,3390.2,2.00479]
[1641483239294,13.097182,3390.9,3389.9,2.00479]
[1641483239295,1.47459784,3390.8,3389.9,2.00479]
[1641483239494,1.47473049,3390.5,3389.9,2.00479]
[1641483239695,0.397182,3390.4,3389.9,2.00479]
[1641483240896,0.397182,3390.4,3389.9,2.7447683]
[1641483241995,0.397182,3390.4,3389.9,2.00479]
[1641483242395,1.5,3390.2,3389.7,0.7399783]
[1641483242595,12.7,3389.9,3389.7,0.7399783]
[1641483242896,0.153218,3389.8,3389.3,2.00479]
[1641483243096,0.397182,3389.7,3389.3,2.00479]
[1641483243295,0.397182,3389.7,3389.3,2.389262]
[1641483243495,2.00479,3390.5,3389.6,1.5]
[1641483243695,2.00479,3390.5,3389.3,2.389262]
[1641483244396,2.00479,3390.5,3390.0,2.00479]
[1641483244998,12.7,3391.2,3390.0,2.00479]
[1641483245600,1.00059533,3391.3,3390.0,2.00479]
[1641483246199,45.53886957,3391.5,3390.0,2.00479]
[1641483246398,2.00479,3391.3,3390.0,2.00479]
[1641483247603,3.47927478,3391.0,3390.0,2.00479]
[1641483247804,2.00479,3391.0,3390.0,2.00479]
[1641483248602,2.00479,3391.0,3390.1,1.5]
[1641483249101,2.00479,3391.0,3390.0,2.00479]
[1641483249508,2.00479,3391.3,3390.0,2.00479]
[1641483250508,2.00479,3391.3,3390.7,2.00479]
[1641483250710,2.401972,3391.3,3390.7,2.389262]
[1641483250910,2.00479,3391.8,3390.7,2.389262]
[1641483252410,2.00479,3391.8,3390.7,4.394052]
[1641483253614,1.5,3391.7,3390.7,4.00958]
[1641483253811,14.70479,3391.8,3390.7,4.00958]
[1641483254014,1.5,3391.6,3390.7,4.00958]
[1641483254212,1.5,3391.1,3390.1,31.7884]
[1641483254414,1.5,3390.8,3390.1,2.00479]
[1641483254713,0.397182,3390.7,3390.1,2.00479]
[1641483254913,1.47466308,3390.6,3390.1,2.00479]
[1641483255111,0.397182,3390.5,3389.8,2.00479]
[1641483255311,0.547089,3390.5,3389.8,2.00479]
[1641483255713,0.397182,3390.5,3389.8,2.00479]
[1641483255913,0.165131,3390.4,3389.8,2.389262]
[1641483256314,2.00479,3390.9,3389.8,2.389262]
[1641483256613,2.00479,3390.9,3390.3,2.00479]
[1641483256814,0.397182,3390.8,3390.3,2.00479]
[1641483257016,2.00479,3390.9,3390.3,2.00479]
[1641483257613,2.401972,3390.9,3390.3,2.00479]
[1641483258815,1.47458044,3390.8,3390.3,2.00479]
[1641483259216,0.397182,3390.7,3390.3,2.00479]
[1641483260016,1.47470657,3390.5,3389.8,2.00479]
[1641483260216,0.397182,3390.4,3389.8,2.00479]
[1641483260419,2.00479,3390.3,3389.8,2.00479]
[1641483260616,1.5,3390.7,3389.8,2.00479]
[1641483260816,1.4746696,3390.6,3389.8,2.00479]
[1641483261017,0.397182,3390.5,3389.8,2.00479]
[1641483261216,0.397182,3390.5,3389.3,31.7132]
[1641483261416,1.87191902,3390.5,3389.3,31.7132]
[1641483261617,0.397182,3390.5,3389.3,31.7132]
[1641483262016,1.5,3391.9,3389.4,2.95493497]
[1641483262218,1.5,3391.9,3389.4,15.65493497]
[1641483262416,2.00479,3391.5,3390.7,2.00479]
[1641483262615,0.397182,3391.4,3390.7,2.00479]
[1641483263215,1.897182,3391.4,3390.7,2.00479]
[1641483263418,1.5,3390.9,3389.4,0.46895278]
[1641483263716,1.47472832,3390.5,3389.3,31.7132]
[1641483264118,1.47472832,3390.5,3390.1,0.73008976]
[1641483264318,1.5,3391.2,3390.1,0.73008976]
[1641483264319,0.397182,3390.4,3390.1,0.73008976]
[1641483264519,3.47952702,3390.5,3390.2,0.459982]
[1641483264721,0.5504,3390.4,3390.2,0.459982]
[1641483265018,0.397182,3390.4,3390.2,0.459982]
[1641483265218,0.397182,3390.4,3389.6,2.73487976]
[1641483265920,0.397182,3390.4,3389.7,0.384472]
[1641483267017,0.397182,3390.4,3389.6,2.73487976]
[1641483267421,0.397182,3390.4,3389.7,0.73008976]
[1641483268421,0.397182,3390.4,3389.7,1.19905889]
[1641483271226,1.47494366,3390.0,3389.7,0.73008976]
[1641483271432,14.70479,3390.8,3389.5,0.73008976]
[1641483271433,14.175146,3389.8,3389.5,0.73008976]
[1641483271825,1.5,3389.6,3388.5,1.8778438]
[1641483272223,1.475146,3389.8,3388.5,1.8778438]
[1641483272624,2.00479,3389.7,3388.9,2.00479]
[1641483272827,0.397182,3389.6,3388.9,2.00479]
[1641483273626,1.47548555,3389.0,3388.3,1.8778438]
[1641483273828,0.397182,3388.9,3388.3,1.8778438]
[1641483274027,14.2,3389.6,3388.3,1.8778438]
[1641483274327,1.5,3389.4,3389.0,0.46903815]
[1641483274529,2.00479,3389.1,3389.0,0.46903815]
[1641483274830,2.158008,3389.1,3389.0,0.46903815]
[1641483275428,2.55519,3389.1,3389.0,0.46903815]
[1641483275631,2.55519,3389.1,3388.6,0.46903815]
[1641483275828,2.158008,3389.1,3388.6,0.86622015]
[1641483276027,2.00479,3389.1,3388.6,0.86622015]
[1641483276628,2.00479,3389.1,3388.7,0.46903815]
[1641483276828,2.00479,3389.1,3388.8,0.397182]
[1641483277030,2.00479,3389.1,3388.9,0.459982]
[1641483277431,2.00479,3389.1,3388.9,0.857164]
[1641483277634,0.153218,3389.0,3388.9,0.86622015]
[1641483278031,0.153218,3389.0,3388.9,0.46903815]
[1641483278231,2.00479,3389.1,3388.9,0.92902015]
[1641483279133,0.153218,3389.0,3388.9,0.46903815]
[1641483279433,2.00479,3389.1,3388.9,0.92902015]
[1641483279633,2.00479,3389.1,3388.9,0.46903815]
[1641483279833,2.00479,3389.1,3389.0,0.46903815]
[1641483280034,2.158008,3389.1,3389.0,0.46903815]
[1641483280237,2.00479,3389.1,3389.0,0.92902015]
[1641483280437,2.00479,3389.1,3389.0,0.46903815]
[1641483281035,2.00479,3389.1,3388.9,0.46903815]
[1641483281238,2.158008,3389.1,3388.9,0.46903815]
[1641483281437,0.397182,3389.0,3388.9,0.46903815]
[1641483282037,2.00479,3389.7,3388.9,0.92902015]
[1641483282336,1.44554159,3391.1,3389.6,0.1152559]
[1641483282536,1.00059533,3390.6,3390.4,0.1152559]
[1641483282738,1.39777733,3390.6,3390.4,0.1152559]
[1641483282936,1.39777733,3390.6,3390.0,0.1152559]
[1641483283537,0.397182,3390.6,3390.0,0.1152559]
[1641483283737,0.397182,3390.6,3389.6,2.00479]
[1641483283937,0.397182,3390.6,3390.2,0.1152559]
[1641483284336,0.397182,3390.6,3389.6,2.00479]
[1641483284337,0.397182,3390.6,3389.8,0.1152559]
[1641483284537,0.397182,3390.6,3389.9,0.1152559]
[1641483284738,0.397182,3390.6,3389.6,2.00479]
[1641483284939,0.397182,3390.6,3390.1,0.1152559]
[1641483285139,0.397182,3390.6,3389.6,2.00479]
[1641483285341,0.397182,3390.6,3390.4,0.1152559]
[1641483285540,0.397182,3390.6,3390.4,0.5752379]
[1641483285742,2.00479,3390.8,3390.4,0.5752379]
[1641483285941,2.00479,3390.8,3390.4,0.1152559]
[1641483286142,2.00479,3390.8,3390.3,0.781654]
[1641483286642,2.00479,3390.8,3390.5,0.46903815]
[1641483286843,1.47469352,3390.6,3390.5,0.46903815]
[1641483287443,0.5504,3390.7,3390.5,0.46903815]
[1641483287847,0.5504,3390.7,3390.2,0.397182]
[1641483288845,1.47468265,3390.6,3390.3,0.46903815]
[1641483289048,0.5504,3390.5,3390.3,0.46903815]
[1641483290450,0.5504,3390.5,3390.1,0.46903815]
[1641483292252,0.5504,3390.5,3390.2,0.73283439]
[1641483292450,0.153218,3390.4,3390.2,0.73283439]
[1641483293149,0.397182,3390.5,3390.2,0.73283439]
[1641483293351,0.153218,3390.4,3390.2,0.73283439]
[1641483293852,0.153218,3390.4,3390.2,1.19281639]
[1641483294052,1.3847441,3390.3,3390.1,0.46903815]
[1641483294253,14.328401,3390.2,3389.3,1.8778438]
[1641483294556,1.3847441,3389.5,3389.3,1.8778438]
[1641483294754,14.0847441,3389.5,3389.2,1.2304728]
[1641483294952,0.431993,3389.4,3389.2,1.2304728]
[1641483295152,0.153218,3389.3,3389.2,0.6254028]
[1641483295351,1.62857729,3389.3,3389.2,0.6254028]
[1641483295554,1.62857729,3389.3,3389.0,2.50379173]
[1641483295756,0.397182,3389.2,3388.8,2.00479]
[1641483296152,0.397182,3389.2,3389.1,0.1152559]
[1641483296452,2.00479,3389.6,3389.1,0.5752379]
[1641483296653,2.00479,3389.6,3389.1,0.459982]
[1641483296854,1.00059533,3389.8,3389.2,0.397182]
[1641483297054,1.00059533,3389.8,3389.7,0.1152559]
[1641483297261,1.00059533,3389.8,3389.7,0.5752379]
[1641483297458,1.25078945,3390.1,3389.7,0.9724199]
[1641483297656,1.25078945,3390.1,3390.0,0.1152559]
[1641483298059,1.25078945,3390.1,3390.0,0.9724199]
[1641483298258,0.99835574,3390.5,3390.0,0.9724199]
[1641483298461,0.99835574,3390.5,3390.3,0.1152559]
[1641483298660,0.153218,3390.4,3390.0,0.5124379]
[1641483298861,0.153218,3390.4,3390.0,0.1152559]
[1641483299061,0.397182,3390.3,3390.1,0.1152559]
[1641483299361,1.3847441,3390.2,3388.4,3.24490518]
[1641483299561,1.3847441,3389.8,3389.2,2.50379173]
[1641483299761,0.397182,3389.7,3389.2,2.50379173]
[1641483300163,12.7,3390.5,3389.2,2.50379173]
[1641483300362,3.47946395,3390.6,3390.1,0.1152559]
[1641483300565,0.397182,3390.5,3389.6,0.1152559]
[1641483300762,1.4749219,3390.0,3389.6,0.1152559]
[1641483300961,0.397182,3389.9,3389.4,2.00479]
[1641483302361,0.397182,3389.9,3389.4,2.389262]
[1641483303662,0.397182,3389.9,3389.4,2.5045179]
[1641483305366,0.397182,3389.9,3389.4,2.1200459]
[1641483306173,1.7819261,3389.9,3388.9,1.83636048]
[1641483306469,1.47535493,3389.0,3388.9,1.83636048]
[1641483306671,2.02575493,3389.0,3388.9,1.83636048]
[1641483307071,1.87253693,3389.0,3388.7,1.95161638]
[1641483307271,1.87253693,3389.0,3388.8,0.459982]
[1641483307470,1.87253693,3389.0,3388.7,1.83636048]
[1641483307671,1.47535493,3389.0,3388.9,0.1152559]
[1641483307871,1.47535493,3389.0,3388.7,1.83636048]
[1641483308071,1.3847441,3389.9,3388.8,0.459982]
[1641483308275,1.3847441,3389.7,3388.7,1.83636048]
[1641483308472,1.25078945,3389.9,3388.5,5.13398453]
[1641483308672,3.48004046,3389.3,3388.5,2.00479]
[1641483308873,1.47538105,3389.0,3388.6,0.397182]
[1641483309272,1.47538105,3389.0,3388.7,0.1152559]
[1641483309473,0.397182,3389.2,3388.9,0.1152559]
[1641483309674,2.00479,3389.3,3389.1,0.1152559]
[1641483309973,0.99919301,3389.7,3389.1,0.1152559]
[1641483310173,0.397182,3389.6,3389.0,0.397182]
[1641483310776,0.397182,3389.6,3389.5,0.1152559]
[1641483310974,0.5504,3389.6,3389.1,2.00479]
[1641483311176,0.5504,3389.6,3389.3,0.1152559]
[1641483311376,0.5504,3389.6,3389.4,0.459982]
[1641483311575,0.5504,3389.6,3389.5,0.1152559]
[1641483311875,2.47413449,3390.0,3389.5,0.8969099]
[1641483312075,0.99919301,3390.0,3389.9,0.1152559]
[1641483312274,0.99919301,3390.0,3389.9,0.9724199]
[1641483313076,4.00958,3390.2,3389.9,1.70757794]
[1641483313280,4.00958,3390.2,3390.1,0.1152559]
[1641483313478,0.99919301,3390.3,3390.1,0.9724199]
[1641483313779,0.99919301,3390.3,3390.2,0.384472]
[1641483314180,1.25078945,3390.6,3390.2,1.884472]
[1641483314379,0.62538165,3390.8,3390.5,0.1152559]
[1641483314581,0.62538165,3390.8,3390.7,0.1152559]
[1641483314782,0.62538165,3390.8,3390.7,2.1200459]
[1641483314980,0.62538165,3390.8,3390.7,2.5172279]
[1641483315378,0.62538165,3390.8,3390.7,2.9772099]
[1641483315580,0.62538165,3390.8,3390.7,0.9724199]
[1641483315980,0.397182,3391.1,3390.7,0.9724199]
[1641483316780,2.401972,3391.1,3390.7,0.9724199]
[1641483316979,2.00479,3391.1,3390.7,0.9724199]
[1641483317381,2.00479,3391.1,3391.0,0.73213007]
[1641483317581,2.00479,3391.1,3391.0,1.19211207]
[1641483317783,2.158008,3391.1,3391.0,0.73213007]
[1641483318385,2.62694196,3391.1,3390.9,0.73213007]
[1641483318584,2.47372396,3391.1,3390.9,1.19211207]
[1641483319382,0.46893396,3391.0,3390.9,1.19211207]
[1641483319583,0.46893396,3391.0,3390.9,0.459982]
[1641483320385,2.00479,3391.1,3390.9,0.459982]
[1641483320586,2.00479,3391.1,3390.9,1.58834928]
[1641483320787,2.00479,3391.1,3390.9,1.70360518]
[1641483321890,2.00479,3391.1,3391.0,0.397182]
[1641483322289,0.153218,3391.1,3391.0,0.397182]
[1641483322487,3.50341886,3391.7,3391.0,0.857164]
[1641483322687,0.397182,3391.6,3391.0,0.857164]
[1641483322888,0.397182,3391.6,3391.0,0.397182]
[1641483323493,1.3847441,3391.4,3390.8,0.73213007]
[1641483323690,0.397182,3391.3,3390.8,0.73213007]
[1641483323892,1.47444347,3391.1,3390.9,0.73213007]
[1641483324092,12.7,3391.4,3390.9,0.73213007]
[1641483324093,0.153218,3391.0,3390.9,0.73213007]
[1641483324290,0.397182,3391.0,3390.9,0.73213007]
[1641483324893,2.55519,3391.0,3390.9,0.84738597]
[1641483325092,2.55519,3391.0,3390.9,0.1152559]
[1641483326096,2.401972,3391.0,3390.9,0.459982]
[1641483326296,2.55519,3391.0,3390.7,0.384472]
[1641483326495,2.401972,3391.0,3390.7,0.384472]
[1641483326895,2.401972,3391.0,3390.8,0.459982]
[1641483327197,2.401972,3391.0,3390.9,0.1152559]
[1641483327394,2.55519,3391.0,3390.7,0.1152559]
[1641483327996,2.55519,3391.0,3390.7,0.84738597]
[1641483328699,2.55519,3391.0,3390.7,0.73213007]
[1641483328896,15.25519,3391.0,3390.7,0.73213007]
[1641483329097,15.25519,3391.0,3390.5,0.73213007]
[1641483329397,2.55519,3391.0,3390.5,1.11660207]
[1641483329597,1.47454131,3390.9,3390.5,1.11660207]
[1641483330200,1.3961676,3390.8,3390.5,0.384472]
[1641483330597,1.3961676,3390.8,3390.6,0.459982]
[1641483330799,1.5493856,3390.8,3390.4,0.84738597]
[1641483331400,1.3961676,3390.8,3390.4,0.84738597]
[1641483331999,1.3961676,3390.8,3390.6,0.1152559]
[1641483332500,1.3961676,3390.8,3390.6,0.5752379]
[1641483333903,1.3961676,3390.8,3390.7,0.39593651]
[1641483334605,0.397182,3390.8,3390.7,0.39593651]
[1641483335809,3.25650437,3390.8,3389.9,3.88281238]
[1641483336008,1.3847441,3390.3,3389.9,3.88281238]
[1641483336209,0.397182,3390.2,3389.9,2.46176328]
[1641483336407,0.397182,3390.2,3389.9,0.6254028]
[1641483336408,0.153218,3390.1,3389.9,0.6254028]
[1641483336807,0.397182,3390.0,3389.9,0.6254028]
[1641483337007,0.397182,3390.0,3389.9,0.7406587]
[1641483337607,0.397182,3390.0,3389.9,1.2006407]
[1641483337812,0.397182,3390.0,3389.9,1.0853848]
[1641483338007,0.5504,3390.0,3389.6,0.384472]
[1641483338207,0.5504,3390.0,3389.6,0.4997279]
[1641483338407,0.5504,3390.0,3389.6,0.1152559]
[1641483338808,1.4750285,3389.8,3389.4,0.1152559]
[1641483339007,0.397182,3389.7,3389.4,0.1152559]
[1641483339210,0.397182,3389.7,3389.5,0.459982]
[1641483339807,0.153218,3389.6,3389.4,0.1152559]
[1641483340007,1.4750285,3389.8,3389.4,0.1152559]
[1641483340209,1.4750285,3389.8,3389.5,0.459982]
[1641483340610,0.397182,3389.7,3389.5,0.459982]
[1641483340811,0.397182,3389.7,3389.1,1.83636048]
[1641483340812,0.5504,3389.7,3389.1,1.83636048]
[1641483341010,2.00479,3389.2,3389.1,1.83636048]
[1641483341212,2.401972,3389.2,3389.1,1.83636048]
[1641483341609,2.55519,3389.2,3389.1,1.83636048]
[1641483342716,2.55519,3389.2,3389.1,0.1152559]
[1641483343114,2.401972,3389.2,3389.1,0.1152559]
[1641483343313,2.55519,3389.2,3389.1,0.1152559]
[1641483343513,2.401972,3389.2,3389.1,0.1152559]
[1641483344213,2.55519,3389.2,3389.1,0.1152559]
[1641483344611,1.00023807,3389.5,3389.1,0.1152559]
[1641483344812,1.00023807,3389.5,3389.4,0.1152559]
[1641483345012,1.00023807,3389.5,3389.3,2.00479]
[1641483345213,1.47512424,3389.6,3389.4,0.1152559]
[1641483345412,1.47512424,3389.6,3389.5,0.1152559]
[1641483345812,1.47512424,3389.6,3389.3,2.00479]
[1641483346012,1.47512424,3389.6,3389.4,0.459982]
[1641483346212,1.47512424,3389.6,3389.3,2.00479]
[1641483346815,1.47512424,3389.6,3389.0,2.00479]
[1641483347013,12.7,3389.3,3388.8,1.83636048]
[1641483347416,0.010883,3389.2,3388.8,1.83636048]
[1641483347615,1.47535929,3389.0,3388.8,1.83636048]
[1641483347816,1.47535929,3389.0,3388.7,1.95161638]
[1641483348218,1.47535929,3389.0,3388.7,1.83636048]
[1641483348418,1.47535929,3389.0,3388.7,1.95161638]
[1641483349223,1.47535929,3389.0,3388.8,0.459982]
[1641483349420,1.00023807,3389.3,3388.9,0.1152559]
[1641483349620,2.47547112,3389.3,3388.8,0.397182]
[1641483349822,2.47547112,3389.3,3389.2,0.1152559]
[1641483350020,2.47547112,3389.3,3389.2,0.5752379]
[1641483350321,2.00479,3389.4,3389.2,0.5752379]
[1641483350520,1.00023807,3389.5,3389.2,0.5752379]
[1641483350721,1.00023807,3389.5,3389.4,0.1152559]
[1641483350921,1.00023807,3389.5,3389.4,6.0848179]
[1641483351324,1.49862886,3390.0,3389.5,0.397182]
[1641483351522,2.74929996,3390.0,3389.9,0.1152559]
[1641483351723,1.2506711,3390.0,3389.9,0.5752379]
[1641483351923,1.2506711,3390.0,3389.9,0.1152559]
[1641483352723,1.49862886,3390.2,3389.9,0.1152559]
[1641483353123,14.17470222,3390.5,3389.9,0.1152559]
[1641483353422,12.7,3390.5,3389.9,0.1152559]
[1641483353823,2.00479,3390.6,3389.9,0.1152559]
[1641483354025,2.00479,3390.6,3390.3,0.73104339]
[1641483354225,2.00479,3390.6,3390.5,0.1152559]
[1641483354425,2.00479,3390.6,3390.3,0.73104339]
[1641483354826,1.47480662,3390.4,3390.3,0.73104339]
[1641483355025,14.70479,3390.6,3390.3,0.73104339]
[1641483355225,1.47488927,3390.4,3390.3,0.73104339]
[1641483355826,2.00479,3390.6,3390.3,1.19102539]
[1641483356029,0.62547965,3390.5,3390.3,0.459982]
[1641483356628,0.62547965,3390.5,3390.1,1.11551539]
[1641483356629,0.62547965,3390.5,3390.4,0.1152559]
[1641483356831,0.62547965,3390.5,3390.1,1.23077129]
[1641483357029,0.62547965,3390.5,3390.1,1.11551539]
[1641483357230,0.62547965,3390.5,3390.1,0.73104339]
[1641483357430,0.46909161,3390.5,3390.4,0.34591302]
[1641483358031,0.62117261,3390.5,3390.4,0.34591302]
[1641483358232,14.79607711,3390.5,3390.4,0.34591302]
[1641483358431,2.09607711,3390.5,3390.4,0.34591302]
[1641483358633,14.79607711,3390.5,3389.9,1.1914058]
[1641483358834,16.18082121,3390.5,3389.9,1.0761499]
[1641483359435,12.7,3389.9,3389.3,0.6254028]
[1641483359633,1.3847441,3389.8,3389.3,0.6254028]
[1641483359834,1.3847441,3389.8,3388.8,1.83636048]
[1641483359835,1.3847441,3389.5,3388.8,1.83636048]
[1641483360235,1.47543765,3388.9,3388.8,1.83636048]
[1641483360637,1.49502765,3388.9,3388.8,1.83636048]
[1641483361237,1.49502765,3388.9,3388.6,2.00479]
[1641483362042,5.47558787,3388.7,3388.6,2.00479]
[1641483362237,18.17558787,3388.7,3388.6,2.00479]
[1641483362536,18.38649109,3388.7,3388.6,2.00479]
[1641483363740,16.910827,3388.7,3388.6,2.00479]
[1641483363939,16.910827,3388.7,3388.3,2.00479]
[1641483363940,18.38649109,3388.7,3388.3,2.00479]
[1641483364139,18.38649109,3388.7,3387.5,0.1152559]
[1641483364140,1.3847441,3388.4,3387.5,0.1152559]
[1641483364340,16.910827,3388.7,3388.2,0.1152559]
[1641483364341,18.2955711,3388.7,3388.2,0.1152559]
[1641483364543,0.050076,3388.3,3388.2,0.1152559]
[1641483364739,1.52587075,3388.3,3387.3,1.83636048]
[1641483364944,1.3847441,3388.5,3387.3,1.95161638]
[1641483365142,1.4759603,3387.7,3387.3,1.95161638]
[1641483365342,12.7,3387.9,3387.3,0.1152559]
[1641483365541,0.013071,3387.6,3387.0,1.83636048]
[1641483365740,0.204292,3387.8,3387.5,0.1152559]
[1641483365940,12.7,3387.9,3387.5,0.1152559]
[1641483366341,0.189041,3387.8,3387.5,0.1152559]
[1641483366743,3.149041,3387.8,3387.7,0.1152559]
[1641483366943,0.189041,3387.8,3387.7,0.1152559]
[1641483367342,12.780575,3388.2,3387.7,0.1152559]
[1641483367543,0.189041,3388.1,3387.4,2.389262]
[1641483367742,0.189041,3388.1,3387.9,0.1152559]
[1641483367942,12.7,3388.2,3387.9,0.1152559]
[1641483368142,0.258725,3388.1,3387.9,0.1152559]
[1641483368542,0.258725,3388.1,3387.4,2.00479]
[1641483368745,1.47581653,3388.0,3387.4,2.1200459]
[1641483368944,0.258725,3388.1,3387.9,0.1152559]
[1641483369143,2.00479,3388.3,3388.0,0.459982]
[1641483369344,2.00479,3388.3,3388.2,0.1152559]
[1641483369545,2.00479,3388.7,3388.2,0.1152559]
[1641483369746,2.00479,3388.7,3388.5,0.1152559]
[1641483369945,2.00479,3388.7,3388.5,0.5752379]
[1641483372547,2.00479,3388.7,3388.2,2.00479]
[1641483373748,14.70479,3388.7,3388.3,0.1152559]
[1641483373950,12.7,3388.3,3387.8,0.6256929]
[1641483374353,12.936948,3388.6,3387.8,0.6256929]
[1641483374549,2.00479,3388.7,3388.4,0.1152559]
[1641483375051,0.234771,3388.6,3388.4,0.1152559]
[1641483375250,2.00479,3388.5,3388.4,0.1152559]
[1641483375651,3.48038005,3388.5,3387.8,0.6256929]
[1641483375851,2.00479,3388.5,3387.8,0.6256929]
[1641483376251,2.00479,3388.5,3387.7,0.1152559]
[1641483376452,2.00479,3388.5,3387.4,2.00479]
[1641483376651,2.00479,3388.5,3388.4,0.1152559]
[1641483377949,2.00479,3388.5,3387.8,0.384472]
[1641483377950,2.00479,3388.5,3387.8,0.1152559]
[1641483378150,2.00479,3388.5,3388.3,0.1152559]
[1641483379152,3.48038441,3388.5,3388.4,0.459982]
[1641483379352,2.00479,3388.5,3388.3,0.1152559]
[1641483380352,2.00479,3388.5,3387.9,0.1152559]
[1641483380552,1.43988239,3389.8,3388.4,1.6152559]
[1641483380756,1.43988239,3389.8,3388.0,0.781654]
[1641483380757,1.47508072,3389.7,3389.5,0.1152559]
[1641483380955,1.43988239,3389.8,3389.5,0.1152559]
[1641483381353,2.00479,3389.6,3389.5,0.1152559]